[Event "Early-Titled-Tuesday-Blitz-March-12-2024"]
[Site "Chess.com"]
[Date "2024.03.12"]
[Round "7"]
[White "CarlosjPineror"]
[Black "falzehope0"]
[Result "1-0"]
[WhiteElo "2624"]
[BlackElo "2439"]
[TimeControl "180+1"]
[EndTime "9:17:49 PDT"]
[Termination "CarlosjPineror won by resignation"]

1. e4 {[%clk 0:02:55.2]} 1... d6 {[%clk 0:02:59.5]} 2. d4 {[%clk 0:02:54.5]}
2... Nf6 {[%clk 0:03:00.1]} 3. Nc3 {[%clk 0:02:55]} 3... Nbd7 {[%clk 0:02:59.9]}
4. g3 {[%clk 0:02:51.5]} 4... e5 {[%clk 0:02:59.8]} 5. Bg2 {[%clk 0:02:51.5]}
5... Be7 {[%clk 0:03:00.3]} 6. Nge2 {[%clk 0:02:51.5]} 6... O-O {[%clk
0:03:00.9]} 7. O-O {[%clk 0:02:52.2]} 7... Re8 {[%clk 0:02:59.6]} 8. h3 {[%clk
0:02:51.4]} 8... c6 {[%clk 0:02:59.9]} 9. a4 {[%clk 0:02:50.8]} 9... Nf8 {[%clk
0:02:59.4]} 10. Kh2 {[%clk 0:02:49.3]} 10... Ng6 {[%clk 0:02:59.4]} 11. f4
{[%clk 0:02:47.3]} 11... h6 {[%clk 0:02:52.6]} 12. f5 {[%clk 0:02:46.8]} 12...
Nf8 {[%clk 0:02:52.4]} 13. dxe5 {[%clk 0:02:44.9]} 13... dxe5 {[%clk 0:02:52.1]}
14. Be3 {[%clk 0:02:45.3]} 14... Qxd1 {[%clk 0:02:49.9]} 15. Rfxd1 {[%clk
0:02:45]} 15... b6 {[%clk 0:02:44.9]} 16. g4 {[%clk 0:02:42.6]} 16... N6h7
{[%clk 0:02:40.2]} 17. Rd2 {[%clk 0:02:32.6]} 17... Ba6 {[%clk 0:02:39.1]} 18.
Rad1 {[%clk 0:02:32.2]} 18... Rad8 {[%clk 0:02:34.3]} 19. a5 {[%clk 0:02:26]}
19... b5 {[%clk 0:02:20.9]} 20. Nc1 {[%clk 0:02:00.5]} 20... Ra8 {[%clk
0:02:05.4]} 21. Nb3 {[%clk 0:01:59.1]} 21... Nf6 {[%clk 0:01:53.4]} 22. Bc5
{[%clk 0:01:42.7]} 22... Bd8 {[%clk 0:01:46.4]} 23. Bb4 {[%clk 0:01:36.7]} 23...
Be7 {[%clk 0:01:37.1]} 24. Bxe7 {[%clk 0:01:36.1]} 24... Rxe7 {[%clk 0:01:38]}
25. Nc5 {[%clk 0:01:36.2]} 25... Bc8 {[%clk 0:01:37.4]} 26. Na2 {[%clk
0:01:13.5]} 26... N6d7 {[%clk 0:01:30.9]} 27. Nxd7 {[%clk 0:01:04]} 27... Bxd7
{[%clk 0:01:28]} 28. Nb4 {[%clk 0:00:54.6]} 28... Be8 {[%clk 0:01:26.3]} 29. Rd6
{[%clk 0:00:47.9]} 29... Rc8 {[%clk 0:01:24.9]} 30. Bf1 {[%clk 0:00:36.4]} 30...
Rec7 {[%clk 0:01:20.9]} 31. Na6 {[%clk 0:00:33.6]} 31... Rd7 {[%clk 0:01:15]}
32. Nc5 {[%clk 0:00:31.3]} 32... Rxd6 {[%clk 0:01:14.9]} 33. Rxd6 {[%clk
0:00:32.2]} 33... f6 {[%clk 0:01:07.9]} 34. b4 {[%clk 0:00:28.4]} 34... Kf7
{[%clk 0:01:06.3]} 35. c4 {[%clk 0:00:21.6]} 35... Ke7 {[%clk 0:01:04.7]} 36.
Rd2 {[%clk 0:00:21]} 36... bxc4 {[%clk 0:00:58.1]} 37. Bxc4 {[%clk 0:00:20.7]}
37... Rb8 {[%clk 0:00:58.6]} 38. Rb2 {[%clk 0:00:20]} 38... Nd7 {[%clk 0:00:51]}
39. Ne6 {[%clk 0:00:19.8]} 39... c5 {[%clk 0:00:44.2]} 40. b5 {[%clk 0:00:19.1]}
40... Bf7 {[%clk 0:00:42]} 41. Kg2 {[%clk 0:00:17.1]} 41... Bxe6 {[%clk
0:00:41.6]} 42. fxe6 {[%clk 0:00:17.4]} 42... Nf8 {[%clk 0:00:41.9]} 43. Kf2
{[%clk 0:00:14.7]} 43... Nxe6 {[%clk 0:00:41.8]} 44. Bxe6 {[%clk 0:00:15.2]}
44... Kxe6 {[%clk 0:00:42.7]} 45. Ke3 {[%clk 0:00:15.9]} 45... Rd8 {[%clk
0:00:40.2]} 46. b6 {[%clk 0:00:14.9]} 46... axb6 {[%clk 0:00:40.1]} 47. Rxb6+
{[%clk 0:00:15.5]} 47... Ke7 {[%clk 0:00:36.9]} 48. Rb7+ {[%clk 0:00:14.5]}
48... Kf8 {[%clk 0:00:35.7]} 49. a6 {[%clk 0:00:14.8]} 49... Kg8 {[%clk
0:00:23.2]} 50. a7 {[%clk 0:00:14.1]} 50... Kh7 {[%clk 0:00:17.1]} 51. Rb8
{[%clk 0:00:14.1]} 51... Rd1 {[%clk 0:00:16.5]} 52. a8=Q {[%clk 0:00:14.5]}
52... Re1+ {[%clk 0:00:17.1]} 53. Kf3 {[%clk 0:00:14.7]} 53... Rf1+ {[%clk
0:00:17.6]} 54. Kg2 {[%clk 0:00:15]} 54... Rd1 {[%clk 0:00:15]} 55. Rd8 {[%clk
0:00:14.1]} 55... Rc1 {[%clk 0:00:13.8]} 56. Rh8+ {[%clk 0:00:14.6]} 56... Kg6
{[%clk 0:00:14.1]} 57. Qe8+ {[%clk 0:00:15.1]} 57... Kg5 {[%clk 0:00:14.7]} 58.
Rg8 {[%clk 0:00:12.8]} 58... Kf4 {[%clk 0:00:14]} 59. Qg6 {[%clk 0:00:11.3]}
59... Rc2+ {[%clk 0:00:13.2]} 60. Kf1 {[%clk 0:00:11.6]} 60... Rc1+ {[%clk
0:00:12.9]} 61. Ke2 {[%clk 0:00:11.6]} 61... Rc2+ {[%clk 0:00:12.5]} 62. Kd3
{[%clk 0:00:12.3]} 62... Rf2 {[%clk 0:00:10.8]} 63. Qf5+ {[%clk 0:00:12.1]}
63... Kg3 {[%clk 0:00:11.7]} 64. Qxf2+ {[%clk 0:00:11.9]} 64... Kxf2 {[%clk
0:00:12.2]} 65. Rxg7 {[%clk 0:00:12.4]} 65... Kf3 {[%clk 0:00:13.1]} 66. Rg6
{[%clk 0:00:12.8]} 66... h5 {[%clk 0:00:12.3]} 67. gxh5 {[%clk 0:00:12.9]} 67...
Kf4 {[%clk 0:00:12.7]} 68. h6 {[%clk 0:00:13.2]} 68... f5 {[%clk 0:00:13.6]} 69.
exf5 {[%clk 0:00:13.2]} 69... e4+ {[%clk 0:00:14.2]} 70. Ke2 {[%clk 0:00:13.8]}
70... c4 {[%clk 0:00:14.7]} 71. Rc6 {[%clk 0:00:13.9]} 71... c3 {[%clk
0:00:15.6]} 72. Rxc3 {[%clk 0:00:14.3]} 72... Kxf5 {[%clk 0:00:16.2]} 73. Rg3
{[%clk 0:00:14.7]} 73... Kf4 {[%clk 0:00:15.8]} 74. Rg1 {[%clk 0:00:15.6]} 74...
Ke5 {[%clk 0:00:15.2]} 75. h7 {[%clk 0:00:16.5]} 75... Kd4 {[%clk 0:00:15.6]}
76. h8=Q+ {[%clk 0:00:17.4]} 76... Kc4 {[%clk 0:00:15.5]} 77. Rc1+ {[%clk
0:00:17.3]} 77... Kd5 {[%clk 0:00:15.6]} 78. Qh5+ {[%clk 0:00:16.8]} 78... Ke6
{[%clk 0:00:14.4]} 79. Rc6+ {[%clk 0:00:16.4]} 79... Kd7 {[%clk 0:00:15]} 80.
Qd5+ {[%clk 0:00:16.6]} 80... Ke7 {[%clk 0:00:15.2]} 81. Qe6+ {[%clk 0:00:16.9]}
81... Kf8 {[%clk 0:00:14.9]} 82. Rc8+ {[%clk 0:00:17.8]} 82... Kg7 {[%clk
0:00:14.3]} 83. Rg8+ {[%clk 0:00:18.7]} 1-0

[Event "Early-Titled-Tuesday-Blitz-March-12-2024"]
[Site "Chess.com"]
[Date "2024.03.12"]
[Round "7"]
[White "Herman-NY"]
[Black "Iskusnyh"]
[Result "1/2-1/2"]
[WhiteElo "2539"]
[BlackElo "2663"]
[TimeControl "180+1"]
[EndTime "9:17:54 PDT"]
[Termination "Game drawn - insufficient material"]

1. e4 {[%clk 0:03:00.9]} 1... e6 {[%clk 0:02:59.6]} 2. d4 {[%clk 0:03:00.9]}
2... d5 {[%clk 0:02:59.9]} 3. Nc3 {[%clk 0:03:01.6]} 3... Nf6 {[%clk 0:02:59.2]}
4. e5 {[%clk 0:03:01.7]} 4... Nfd7 {[%clk 0:02:59.1]} 5. Nce2 {[%clk 0:03:02.4]}
5... c5 {[%clk 0:02:59.6]} 6. c3 {[%clk 0:03:03.2]} 6... Nc6 {[%clk 0:02:59.4]}
7. f4 {[%clk 0:03:03.9]} 7... Be7 {[%clk 0:02:58.7]} 8. Nf3 {[%clk 0:03:04.1]}
8... cxd4 {[%clk 0:02:52.9]} 9. cxd4 {[%clk 0:03:04.1]} 9... f6 {[%clk 0:02:52]}
10. g3 {[%clk 0:02:43.8]} 10... O-O {[%clk 0:02:49.8]} 11. Bh3 {[%clk
0:02:40.8]} 11... fxe5 {[%clk 0:02:48.5]} 12. dxe5 {[%clk 0:02:37.5]} 12... Nc5
{[%clk 0:02:39.7]} 13. Ned4 {[%clk 0:02:18]} 13... Nxd4 {[%clk 0:02:31.7]} 14.
Nxd4 {[%clk 0:02:18.9]} 14... Qa5+ {[%clk 0:02:07.2]} 15. Kf2 {[%clk 0:02:02.1]}
15... Bd7 {[%clk 0:01:59.5]} 16. Kg2 {[%clk 0:01:57.5]} 16... Kh8 {[%clk
0:01:55.1]} 17. Be3 {[%clk 0:01:49.2]} 17... Rac8 {[%clk 0:01:51.6]} 18. Qe2
{[%clk 0:01:33.3]} 18... a6 {[%clk 0:01:07.3]} 19. Rhc1 {[%clk 0:01:17.5]} 19...
b5 {[%clk 0:00:50.4]} 20. Rxc5 {[%clk 0:01:03.2]} 20... Bxc5 {[%clk 0:00:47.4]}
21. Nb3 {[%clk 0:01:03.4]} 21... Qb4 {[%clk 0:00:47.3]} 22. Bxc5 {[%clk
0:00:56.2]} 22... Rxc5 {[%clk 0:00:47.7]} 23. Nxc5 {[%clk 0:00:56.4]} 23... Qxc5
{[%clk 0:00:47.6]} 24. Rd1 {[%clk 0:00:49.5]} 24... b4 {[%clk 0:00:46.1]} 25.
Qd2 {[%clk 0:00:44.2]} 25... Rc8 {[%clk 0:00:44.7]} 26. Bg4 {[%clk 0:00:39]}
26... a5 {[%clk 0:00:44.2]} 27. h4 {[%clk 0:00:30.8]} 27... a4 {[%clk
0:00:43.2]} 28. h5 {[%clk 0:00:31.1]} 28... h6 {[%clk 0:00:42]} 29. Kh3 {[%clk
0:00:20]} 29... b3 {[%clk 0:00:41.6]} 30. axb3 {[%clk 0:00:19.1]} 30... axb3
{[%clk 0:00:42.5]} 31. Qd3 {[%clk 0:00:15.7]} 31... Qc2 {[%clk 0:00:40.9]} 32.
Rd2 {[%clk 0:00:15.1]} 32... Qc4 {[%clk 0:00:39.2]} 33. Qxc4 {[%clk 0:00:12.7]}
33... Rxc4 {[%clk 0:00:38.3]} 34. Rd3 {[%clk 0:00:13.2]} 34... Ba4 {[%clk
0:00:35.5]} 35. Bxe6 {[%clk 0:00:12.9]} 35... Rc2 {[%clk 0:00:34.6]} 36. Bxd5
{[%clk 0:00:12.1]} 36... Rxb2 {[%clk 0:00:33.7]} 37. e6 {[%clk 0:00:12.7]} 37...
Re2 {[%clk 0:00:32.5]} 38. Bxb3 {[%clk 0:00:12]} 38... Bxb3 {[%clk 0:00:31.3]}
39. Rxb3 {[%clk 0:00:12.9]} 39... Rxe6 {[%clk 0:00:31.8]} 40. Kg4 {[%clk
0:00:13.5]} 40... Kh7 {[%clk 0:00:30.9]} 41. Rb7 {[%clk 0:00:13.5]} 41... Ra6
{[%clk 0:00:29.8]} 42. Re7 {[%clk 0:00:09.1]} 42... Ra5 {[%clk 0:00:29.9]} 43.
Re5 {[%clk 0:00:09.4]} 43... Ra6 {[%clk 0:00:29.9]} 44. Kf5 {[%clk 0:00:09.7]}
44... Rf6+ {[%clk 0:00:29.8]} 45. Ke4 {[%clk 0:00:09.4]} 45... Ra6 {[%clk
0:00:30.7]} 46. g4 {[%clk 0:00:09.9]} 46... Kg8 {[%clk 0:00:30.5]} 47. Kf5
{[%clk 0:00:08.5]} 47... Rf6+ {[%clk 0:00:30.3]} 48. Ke4 {[%clk 0:00:09.1]}
48... Ra6 {[%clk 0:00:31.2]} 49. g5 {[%clk 0:00:09.3]} 49... hxg5 {[%clk
0:00:30.8]} 50. fxg5 {[%clk 0:00:10.2]} 50... Ra1 {[%clk 0:00:29.2]} 51. Kf5
{[%clk 0:00:10.1]} 51... Ra6 {[%clk 0:00:29.1]} 52. g6 {[%clk 0:00:05.5]} 52...
Kf8 {[%clk 0:00:28.4]} 53. Kg5 {[%clk 0:00:05.5]} 53... Rb6 {[%clk 0:00:28.2]}
54. Rf5+ {[%clk 0:00:05.9]} 54... Kg8 {[%clk 0:00:27.8]} 55. Rc5 {[%clk
0:00:06.5]} 55... Rb8 {[%clk 0:00:26.4]} 56. Rf5 {[%clk 0:00:04.4]} 56... Ra8
{[%clk 0:00:25.8]} 57. Re5 {[%clk 0:00:04.8]} 57... Rb8 {[%clk 0:00:25.8]} 58.
Rf5 {[%clk 0:00:05.4]} 58... Ra8 {[%clk 0:00:25.9]} 59. Re5 {[%clk 0:00:05.8]}
59... Rb8 {[%clk 0:00:26]} 60. h6 {[%clk 0:00:06.4]} 60... gxh6+ {[%clk
0:00:25.7]} 61. Kxh6 {[%clk 0:00:07.3]} 61... Ra8 {[%clk 0:00:25.5]} 62. Re7
{[%clk 0:00:07.5]} 62... Rb8 {[%clk 0:00:25.3]} 63. Rg7+ {[%clk 0:00:07.7]}
63... Kh8 {[%clk 0:00:25.1]} 64. Rh7+ {[%clk 0:00:08.6]} 64... Kg8 {[%clk
0:00:25.3]} 65. Rc7 {[%clk 0:00:09.3]} 65... Ra8 {[%clk 0:00:25.1]} 66. Rg7+
{[%clk 0:00:09.6]} 66... Kh8 {[%clk 0:00:25]} 67. Rh7+ {[%clk 0:00:10.3]} 67...
Kg8 {[%clk 0:00:25.3]} 68. Rc7 {[%clk 0:00:11.1]} 68... Rb8 {[%clk 0:00:25]} 69.
Rg7+ {[%clk 0:00:11.6]} 69... Kh8 {[%clk 0:00:24.8]} 70. Ra7 {[%clk 0:00:12.5]}
70... Kg8 {[%clk 0:00:24.3]} 71. Kg5 {[%clk 0:00:11.7]} 71... Rb5+ {[%clk
0:00:23.9]} 72. Kh6 {[%clk 0:00:12.1]} 72... Rb8 {[%clk 0:00:24]} 73. Rd7 {[%clk
0:00:12.4]} 73... Ra8 {[%clk 0:00:24.1]} 74. Rd6 {[%clk 0:00:12]} 74... Rb8
{[%clk 0:00:24]} 75. Rf6 {[%clk 0:00:12.3]} 75... Ra8 {[%clk 0:00:24]} 76. g7
{[%clk 0:00:08.1]} 76... Rb8 {[%clk 0:00:23]} 77. Kg6 {[%clk 0:00:07.2]} 77...
Rc8 {[%clk 0:00:23]} 78. Rf8+ {[%clk 0:00:04.7]} 78... Rxf8 {[%clk 0:00:22.6]}
79. gxf8=Q+ {[%clk 0:00:05.6]} 79... Kxf8 {[%clk 0:00:23.1]} 1/2-1/2

[Event "Early-Titled-Tuesday-Blitz-March-12-2024"]
[Site "Chess.com"]
[Date "2024.03.12"]
[Round "7"]
[White "ChessSwole"]
[Black "Baronessa08"]
[Result "0-1"]
[WhiteElo "2705"]
[BlackElo "2564"]
[TimeControl "180+1"]
[EndTime "9:18:04 PDT"]
[Termination "Baronessa08 won by checkmate"]

1. e4 {[%clk 0:03:00.9]} 1... c5 {[%clk 0:02:57.1]} 2. Nf3 {[%clk 0:03:00.7]}
2... Nc6 {[%clk 0:02:56.5]} 3. d4 {[%clk 0:02:59.3]} 3... cxd4 {[%clk
0:02:55.4]} 4. Nxd4 {[%clk 0:03:00.2]} 4... Qb6 {[%clk 0:02:53.3]} 5. Nb3 {[%clk
0:03:00]} 5... e6 {[%clk 0:02:53.6]} 6. Be3 {[%clk 0:02:57.9]} 6... Qc7 {[%clk
0:02:53.1]} 7. a3 {[%clk 0:02:53.3]} 7... Nf6 {[%clk 0:02:19.8]} 8. Nc3 {[%clk
0:02:53.1]} 8... a6 {[%clk 0:02:19.1]} 9. f4 {[%clk 0:02:50.9]} 9... d6 {[%clk
0:02:09.4]} 10. g4 {[%clk 0:02:44.9]} 10... h5 {[%clk 0:02:03.4]} 11. g5 {[%clk
0:02:32.3]} 11... Nd7 {[%clk 0:01:52.5]} 12. g6 {[%clk 0:02:29.5]} 12... fxg6
{[%clk 0:01:50.9]} 13. Bh3 {[%clk 0:02:29.4]} 13... Nf6 {[%clk 0:01:50.8]} 14.
Rg1 {[%clk 0:02:22.7]} 14... Qf7 {[%clk 0:01:45.3]} 15. Qe2 {[%clk 0:02:11.6]}
15... Be7 {[%clk 0:01:38.8]} 16. O-O-O {[%clk 0:02:08.1]} 16... Ng4 {[%clk
0:01:31.5]} 17. Bxg4 {[%clk 0:02:01.3]} 17... hxg4 {[%clk 0:01:32.4]} 18. Rxg4
{[%clk 0:01:40.6]} 18... e5 {[%clk 0:01:31.2]} 19. Rg2 {[%clk 0:01:16.5]} 19...
exf4 {[%clk 0:01:30]} 20. Nd5 {[%clk 0:01:09.7]} 20... f3 {[%clk 0:01:25.4]} 21.
Qd2 {[%clk 0:00:48.1]} 21... fxg2 {[%clk 0:01:23.6]} 22. Nc7+ {[%clk 0:00:48.1]}
22... Kf8 {[%clk 0:01:22.2]} 23. Nxa8 {[%clk 0:00:48.5]} 23... Rxh2 {[%clk
0:01:18.9]} 24. Bg1 {[%clk 0:00:47.2]} 24... Rh5 {[%clk 0:00:34.1]} 25. Qxg2
{[%clk 0:00:46.6]} 25... Kg8 {[%clk 0:00:34.5]} 26. Nb6 {[%clk 0:00:46]} 26...
Bh3 {[%clk 0:00:32.9]} 27. Qe2 {[%clk 0:00:42.4]} 27... Qf4+ {[%clk 0:00:25.9]}
28. Kb1 {[%clk 0:00:37.7]} 28... Bg4 {[%clk 0:00:25.2]} 29. Qc4+ {[%clk
0:00:37.7]} 29... Qf7 {[%clk 0:00:22.5]} 30. Rf1 {[%clk 0:00:18]} 30... Qxc4
{[%clk 0:00:21.8]} 31. Nxc4 {[%clk 0:00:18.9]} 31... Be6 {[%clk 0:00:21.5]} 32.
Ne3 {[%clk 0:00:15.2]} 32... Rh1 {[%clk 0:00:20.8]} 33. Nd2 {[%clk 0:00:12.6]}
33... Ne5 {[%clk 0:00:20.3]} 34. b4 {[%clk 0:00:10.8]} 34... Bg5 {[%clk
0:00:20.1]} 35. Bf2 {[%clk 0:00:10.5]} 35... Rh2 {[%clk 0:00:19.1]} 36. Be1
{[%clk 0:00:08]} 36... Bxe3 {[%clk 0:00:18.7]} 37. Nb3 {[%clk 0:00:06.2]} 37...
g5 {[%clk 0:00:18.2]} 38. Na5 {[%clk 0:00:05.7]} 38... b5 {[%clk 0:00:17.5]} 39.
Bg3 {[%clk 0:00:06.1]} 39... Rh3 {[%clk 0:00:16.6]} 40. Be1 {[%clk 0:00:05.1]}
40... g4 {[%clk 0:00:17]} 41. Nb7 {[%clk 0:00:01.9]} 41... g3 {[%clk 0:00:16.8]}
42. Bxg3 {[%clk 0:00:02.5]} 42... Rxg3 {[%clk 0:00:16.7]} 43. Nxd6 {[%clk
0:00:03.4]} 43... Rg1 {[%clk 0:00:15.4]} 44. Rxg1 {[%clk 0:00:03.7]} 44... Bxg1
{[%clk 0:00:16.3]} 45. Kc1 {[%clk 0:00:04]} 45... Be3+ {[%clk 0:00:16.2]} 46.
Kd1 {[%clk 0:00:04.2]} 46... g5 {[%clk 0:00:16.2]} 47. Ke2 {[%clk 0:00:04.4]}
47... Bd4 {[%clk 0:00:16]} 48. Kd2 {[%clk 0:00:03.8]} 48... g4 {[%clk
0:00:15.7]} 49. c3 {[%clk 0:00:04.7]} 49... g3 {[%clk 0:00:15]} 50. cxd4 {[%clk
0:00:05.3]} 50... g2 {[%clk 0:00:15.3]} 51. dxe5 {[%clk 0:00:06.1]} 51... g1=Q
{[%clk 0:00:15.7]} 52. Kd3 {[%clk 0:00:06.9]} 52... Qg3+ {[%clk 0:00:15.6]} 53.
Kd4 {[%clk 0:00:07.4]} 53... Qf2+ {[%clk 0:00:15.5]} 54. Kd3 {[%clk 0:00:07.2]}
54... Qa2 {[%clk 0:00:14.8]} 55. Nb7 {[%clk 0:00:06.6]} 55... Qxa3+ {[%clk
0:00:14.2]} 56. Ke2 {[%clk 0:00:07.1]} 56... Qxb4 {[%clk 0:00:14.1]} 57. Nd6
{[%clk 0:00:06.8]} 57... Bc4+ {[%clk 0:00:13.2]} 58. Ke3 {[%clk 0:00:07.2]}
58... Be6 {[%clk 0:00:13.1]} 59. Kf4 {[%clk 0:00:07]} 59... a5 {[%clk
0:00:12.3]} 60. Nb7 {[%clk 0:00:04.3]} 60... a4 {[%clk 0:00:12]} 61. Nd8 {[%clk
0:00:04.9]} 61... Bc4 {[%clk 0:00:11.3]} 62. Nc6 {[%clk 0:00:05.1]} 62... Qc5
{[%clk 0:00:10.4]} 63. Na5 {[%clk 0:00:05.2]} 63... a3 {[%clk 0:00:09.8]} 64.
Nb7 {[%clk 0:00:05.5]} 64... Qe7 {[%clk 0:00:09.8]} 65. Nd6 {[%clk 0:00:05.8]}
65... a2 {[%clk 0:00:09.2]} 66. Nf5 {[%clk 0:00:06.4]} 66... Qf7 {[%clk
0:00:09]} 67. Kg5 {[%clk 0:00:07]} 67... a1=Q {[%clk 0:00:09]} 68. Nh6+ {[%clk
0:00:07.4]} 68... Kf8 {[%clk 0:00:09.2]} 69. Nxf7 {[%clk 0:00:07.4]} 69... Kxf7
{[%clk 0:00:09.9]} 70. Kf5 {[%clk 0:00:07.7]} 70... Be6+ {[%clk 0:00:09.3]} 71.
Kf4 {[%clk 0:00:07.8]} 71... Qd4 {[%clk 0:00:09.9]} 72. Kg5 {[%clk 0:00:07.1]}
72... Qxe5+ {[%clk 0:00:09.9]} 73. Kh6 {[%clk 0:00:08]} 73... Qf6+ {[%clk
0:00:09.6]} 74. Kh5 {[%clk 0:00:08.4]} 74... Kg7 {[%clk 0:00:09.4]} 75. e5
{[%clk 0:00:08.8]} 75... Qf3+ {[%clk 0:00:08.5]} 76. Kh4 {[%clk 0:00:09.1]}
76... Qg4# {[%clk 0:00:08.8]} 0-1

[Event "Early-Titled-Tuesday-Blitz-March-12-2024"]
[Site "Chess.com"]
[Date "2024.03.12"]
[Round "7"]
[White "GMKrikor"]
[Black "jumpingknight20"]
[Result "1-0"]
[WhiteElo "2878"]
[BlackElo "2683"]
[TimeControl "180+1"]
[EndTime "9:18:15 PDT"]
[Termination "GMKrikor won by checkmate"]

1. Nf3 {[%clk 0:02:59.9]} 1... d5 {[%clk 0:02:57.3]} 2. c4 {[%clk 0:02:59.8]}
2... e6 {[%clk 0:02:57.8]} 3. d4 {[%clk 0:02:59.4]} 3... Nf6 {[%clk 0:02:57.9]}
4. Nc3 {[%clk 0:02:59.5]} 4... Bb4 {[%clk 0:02:56.6]} 5. cxd5 {[%clk 0:02:58.4]}
5... exd5 {[%clk 0:02:56.6]} 6. Bf4 {[%clk 0:02:58.4]} 6... O-O {[%clk
0:02:54.9]} 7. e3 {[%clk 0:02:55.9]} 7... c6 {[%clk 0:02:49.2]} 8. Bd3 {[%clk
0:02:50.5]} 8... Bg4 {[%clk 0:02:41]} 9. Qb3 {[%clk 0:02:38.4]} 9... Qb6 {[%clk
0:02:36.5]} 10. Ne5 {[%clk 0:02:37.5]} 10... Bh5 {[%clk 0:02:01.8]} 11. O-O
{[%clk 0:02:34.5]} 11... Be7 {[%clk 0:01:29.9]} 12. Qc2 {[%clk 0:02:31.8]} 12...
Bg6 {[%clk 0:01:30.2]} 13. Nxg6 {[%clk 0:02:27.3]} 13... hxg6 {[%clk 0:01:31.1]}
14. Rab1 {[%clk 0:02:27.2]} 14... Nbd7 {[%clk 0:01:26.4]} 15. h3 {[%clk
0:02:27.2]} 15... Rac8 {[%clk 0:01:15.1]} 16. b4 {[%clk 0:02:27]} 16... Ne8
{[%clk 0:01:06.5]} 17. Nxd5 {[%clk 0:02:13.9]} 17... Qd8 {[%clk 0:01:02.3]} 18.
Nxe7+ {[%clk 0:02:08.5]} 18... Qxe7 {[%clk 0:01:03.2]} 19. a4 {[%clk 0:02:04.9]}
19... Nef6 {[%clk 0:00:53.9]} 20. Qb3 {[%clk 0:01:59.9]} 20... Nd5 {[%clk
0:00:42.6]} 21. Bg3 {[%clk 0:01:58.4]} 21... N7f6 {[%clk 0:00:40.6]} 22. Rfe1
{[%clk 0:01:53.3]} 22... Ne4 {[%clk 0:00:38.3]} 23. Bxe4 {[%clk 0:01:51.6]}
23... Qxe4 {[%clk 0:00:39.2]} 24. Rbc1 {[%clk 0:01:45.5]} 24... Qe7 {[%clk
0:00:37.9]} 25. b5 {[%clk 0:01:43.1]} 25... f5 {[%clk 0:00:28.3]} 26. bxc6
{[%clk 0:01:38.8]} 26... bxc6 {[%clk 0:00:29.2]} 27. Be5 {[%clk 0:01:39.1]}
27... Kh7 {[%clk 0:00:27.6]} 28. a5 {[%clk 0:01:37.3]} 28... f4 {[%clk
0:00:19.2]} 29. exf4 {[%clk 0:01:35.1]} 29... Qf7 {[%clk 0:00:15.9]} 30. Qf3
{[%clk 0:01:14.9]} 30... Nxf4 {[%clk 0:00:15.7]} 31. Re4 {[%clk 0:01:08.9]}
31... Nd5 {[%clk 0:00:11.2]} 32. Qg3 {[%clk 0:01:02.8]} 32... Qf5 {[%clk
0:00:10.8]} 33. Rh4+ {[%clk 0:01:02.8]} 33... Kg8 {[%clk 0:00:11]} 34. Rg4
{[%clk 0:01:03.5]} 34... Kh7 {[%clk 0:00:09]} 35. Rg5 {[%clk 0:01:01.4]} 35...
Qe4 {[%clk 0:00:08.7]} 36. Rg4 {[%clk 0:01:00]} 36... Qf5 {[%clk 0:00:08.6]} 37.
Re1 {[%clk 0:01:00.2]} 37... c5 {[%clk 0:00:06]} 38. Rg5 {[%clk 0:00:58.8]}
38... Qf7 {[%clk 0:00:06]} 39. dxc5 {[%clk 0:00:51]} 39... Rfe8 {[%clk
0:00:04.7]} 40. Qh4+ {[%clk 0:00:44.2]} 40... Kg8 {[%clk 0:00:04.6]} 41. Qg4
{[%clk 0:00:39]} 41... Rc6 {[%clk 0:00:03.7]} 42. Qd4 {[%clk 0:00:35.4]} 42...
Nc7 {[%clk 0:00:02]} 43. Rg4 {[%clk 0:00:25]} 43... Ne6 {[%clk 0:00:02.2]} 44.
Qe4 {[%clk 0:00:24]} 44... Rxc5 {[%clk 0:00:02.8]} 45. Qxg6 {[%clk 0:00:20.9]}
45... Qxg6 {[%clk 0:00:03]} 46. Rxg6 {[%clk 0:00:21.8]} 46... Kf7 {[%clk
0:00:03.5]} 47. Rg3 {[%clk 0:00:21]} 47... Rxa5 {[%clk 0:00:03.7]} 48. Bxg7
{[%clk 0:00:14.8]} 48... Rg8 {[%clk 0:00:03]} 49. Be5 {[%clk 0:00:13]} 49...
Rxg3 {[%clk 0:00:02.6]} 50. Bxg3 {[%clk 0:00:13.9]} 50... Rb5 {[%clk 0:00:03.3]}
51. Be5 {[%clk 0:00:11.8]} 51... a5 {[%clk 0:00:03.7]} 52. Re3 {[%clk
0:00:12.2]} 52... a4 {[%clk 0:00:03.8]} 53. f4 {[%clk 0:00:11.9]} 53... Ra5
{[%clk 0:00:02.1]} 54. Bb2 {[%clk 0:00:10.9]} 54... Nc5 {[%clk 0:00:01.7]} 55.
Ba3 {[%clk 0:00:09.9]} 55... Rb5 {[%clk 0:00:02.3]} 56. Bxc5 {[%clk 0:00:09.2]}
56... Rxc5 {[%clk 0:00:03.2]} 57. Kf2 {[%clk 0:00:09]} 57... Ra5 {[%clk
0:00:03.8]} 58. Ra3 {[%clk 0:00:09.2]} 58... Ke6 {[%clk 0:00:04.5]} 59. Kf3
{[%clk 0:00:09.7]} 59... Kd5 {[%clk 0:00:05.1]} 60. g4 {[%clk 0:00:09]} 60...
Ra8 {[%clk 0:00:05.4]} 61. g5 {[%clk 0:00:08.9]} 61... Ke6 {[%clk 0:00:05.7]}
62. Kg4 {[%clk 0:00:09.3]} 62... Ra5 {[%clk 0:00:05.7]} 63. h4 {[%clk
0:00:09.8]} 63... Kf7 {[%clk 0:00:06]} 64. f5 {[%clk 0:00:09.8]} 64... Kg7
{[%clk 0:00:05]} 65. h5 {[%clk 0:00:10.3]} 65... Kf7 {[%clk 0:00:05.7]} 66. h6
{[%clk 0:00:10.2]} 66... Ra8 {[%clk 0:00:05.5]} 67. Kh5 {[%clk 0:00:10.2]} 67...
Ra5 {[%clk 0:00:05.5]} 68. Kg4 {[%clk 0:00:07.1]} 68... Ra8 {[%clk 0:00:04.7]}
69. h7 {[%clk 0:00:07.7]} 69... Kg7 {[%clk 0:00:04.6]} 70. g6 {[%clk 0:00:08.4]}
70... Kf6 {[%clk 0:00:04.9]} 71. Kh5 {[%clk 0:00:06.1]} 71... Kg7 {[%clk
0:00:05.3]} 72. Kg5 {[%clk 0:00:06.5]} 72... Ra5 {[%clk 0:00:05.6]} 73. Rh3
{[%clk 0:00:04.5]} 73... Ra8 {[%clk 0:00:04.2]} 74. f6+ {[%clk 0:00:04.8]} 74...
Kh8 {[%clk 0:00:04]} 75. g7# {[%clk 0:00:04.9]} 1-0